bitfinex/quotes_ETHUSD_20220103
["timestamp","ask_amount","ask_price","bid_price","bid_amount"]
[1641195562780,1.24511603,3807.1,3806.8,1.61687334]
[1641195563079,1.24511603,3807.1,3806.9,0.00454739]
[1641195568270,1.24511603,3807.1,3806.6,0.66299266]
[1641195568470,1.24511603,3807.1,3806.7,0.00568424]
[1641195569073,1.24511603,3807.1,3806.6,0.00625266]
[1641195574012,1.24511603,3807.1,3806.6,0.66300266]
[1641195574215,1.24511603,3807.1,3806.6,0.00625266]
[1641195574420,1.24511603,3807.1,3806.7,0.00568424]
[1641195574614,1.24511603,3807.1,3806.6,0.00625266]
[1641195574816,1.24511603,3807.1,3806.5,0.00682108]
[1641195575467,0.03069208,3807.2,3806.5,0.00682108]
[1641195575468,0.03069208,3807.2,3806.5,0.66356108]
[1641195575869,0.03069208,3807.2,3806.6,0.00625266]
[1641195576268,0.68743308,3807.2,3806.6,0.00625266]
[1641195576774,1.24426982,3807.1,3806.6,0.00625266]
[1641195577672,0.6567393,3807.0,3806.6,0.00625266]
[1641195577874,0.65677,3807.0,3806.6,0.00625266]
[1641195578873,0.65677,3807.0,3806.5,0.30682108]
[1641195579121,0.65677,3807.0,3806.6,0.00625266]
[1641195579321,0.6567697,3806.9,3806.6,0.00625266]
[1641195579718,0.6567697,3806.9,3806.5,0.30682108]
[1641195579921,0.6567697,3806.9,3806.6,0.00625266]
[1641195581018,0.6567697,3806.9,3806.5,0.30682108]
[1641195581420,0.6567697,3806.9,3806.6,0.00625266]
[1641195581621,0.6567697,3806.9,3806.8,1.31687334]
[1641195582022,0.6567697,3806.9,3806.8,1.32198915]
[1641195590038,2.00107646,3807.0,3806.8,1.32198915]
[1641195590262,2.65787736,3807.0,3806.8,1.32198915]
[1641195590463,2.65787736,3807.0,3806.9,0.00454739]
[1641195590661,2.00110736,3807.0,3806.9,0.00454739]
[1641195591463,2.00110736,3807.0,3806.7,0.30568424]
[1641195591665,2.00110736,3807.0,3806.8,0.00511581]
[1641195592062,2.00110736,3807.0,3806.7,0.00568424]
[1641195592262,0.6567988,3806.9,3806.7,0.00568424]
[1641195592464,0.6567988,3806.9,3806.6,0.00625266]
[1641195593266,0.6568,3806.8,3806.6,0.00625266]
[1641195593867,0.656802,3806.7,3806.5,0.00682108]
[1641195594119,1.34430646,3807.0,3806.5,0.00682108]
[1641195594120,0.03069386,3807.0,3806.5,1.32369442]
[1641195594325,0.6568,3806.7,3806.5,1.62369442]
[1641195594518,0.6568,3806.7,3806.6,0.00625266]
[1641195597120,1.90465697,3806.7,3806.6,0.00625266]
[1641195598373,1.90465697,3806.7,3806.2,1.75377805]
[1641195598374,1.6958,3806.5,3806.2,1.75377805]
[1641195598583,1.6958,3806.5,3805.4,0.01288728]
[1641195598584,0.67146935,3805.6,3804.5,5.78741899]
[1641195598776,2.88845706,3805.5,3804.6,5.2562]
[1641195598982,1.32351084,3805.4,3805.2,3.11154113]
[1641195599180,7.76325706,3805.3,3805.2,3.11154113]
[1641195599577,8.76325706,3805.3,3805.2,0.00795793]
[1641195599784,1.3145267,3805.0,3804.6,5.2562]
[1641195599980,0.381,3804.9,3804.7,0.00284212]
[1641195600381,1.69552,3804.9,3804.7,0.00284212]
[1641195600580,0.381,3804.9,3804.7,0.00284212]
[1641195601721,1.00733352,3804.8,3804.7,0.00284212]
[1641195601920,1.38833352,3804.8,3804.7,0.00284212]
[1641195605674,3.66950823,3804.8,3804.7,0.00284212]
[1641195612221,4.35571523,3804.8,3804.7,0.00284212]
[1641195614181,7.02928286,3804.8,3804.7,0.00284212]
[1641195615979,6.02194934,3804.8,3804.7,0.00284212]
[1641195616183,1.067207,3804.8,3804.7,0.00284212]
[1641195617736,0.381,3804.8,3804.7,0.00284212]
[1641195622282,0.41171073,3804.8,3804.7,0.00284212]
[1641195629986,0.65722,3804.7,3804.6,5.2562]
[1641195630382,0.65722,3804.7,3804.6,5.25961054]
[1641195631522,1.95722,3804.7,3804.6,5.25961054]
[1641195631716,0.65722,3804.7,3804.6,5.25961054]
[1641195633927,2.38336963,3804.8,3804.6,5.25961054]
[1641195634325,2.38336963,3804.8,3804.7,0.00284212]
[1641195635771,1.72614963,3804.8,3804.7,0.00284212]
[1641195636572,4.70550177,3804.8,3804.7,0.00284212]
[1641195642233,7.38627246,3804.8,3804.7,0.00284212]
[1641195647727,4.70550177,3804.8,3804.7,0.00284212]
[1641195655933,1.02312362,3805.0,3804.7,0.00284212]
[1641195656139,1.97148,3805.7,3805.5,0.99358]
[1641195656335,4.46144648,3805.8,3805.6,0.01297288]
[1641195657983,2.44340827,3806.4,3805.5,2.62786792]
[1641195658184,1.78649827,3806.4,3805.5,2.62786792]
[1641195658385,0.00625266,3806.3,3805.5,2.62786792]
[1641195658791,1.97087,3806.6,3805.5,1.29358]
[1641195658792,1.79218251,3806.2,3805.5,1.29358]
[1641195659090,0.00511581,3806.1,3805.5,1.29358]
[1641195659489,0.00454739,3806.0,3805.5,1.29358]
[1641195659989,0.00397897,3805.9,3805.5,1.29358]
[1641195660194,0.00397897,3805.9,3805.5,1.59358]
[1641195660392,0.00341054,3805.8,3805.6,0.6569]
[1641195660591,0.00341054,3805.8,3805.6,1.6569]
[1641195660791,0.00284212,3805.7,3805.6,1.6569]
[1641195662135,0.00284212,3805.7,3805.5,2.59358]
[1641195662336,0.00284212,3805.7,3805.5,1.59358]
[1641195662539,1.78649827,3806.3,3805.6,1.0]
[1641195662740,1.78649827,3806.3,3805.5,2.59358]
[1641195662936,0.00568424,3806.2,3805.5,1.59358]
[1641195663138,0.00568424,3806.2,3805.6,1.0]
[1641195663343,0.00511581,3806.1,3805.5,3.92786792]
[1641195663637,0.00454739,3806.0,3805.6,1.0]
[1641195663842,0.00454739,3806.0,3805.5,2.62786792]
[1641195664047,0.00397897,3805.9,3805.6,1.0]
[1641195664341,0.00341054,3805.8,3805.6,1.0]
[1641195664751,0.00284212,3805.7,3805.6,1.0]
[1641195665396,0.00284212,3805.7,3805.5,2.62786792]
[1641195665696,1.37069817,3806.7,3805.6,0.65691]
[1641195666098,0.00568424,3806.2,3805.6,0.65691]
[1641195666501,0.00511581,3806.1,3805.6,0.65691]
[1641195666899,0.05683817,3806.7,3805.7,1.92998895]
[1641195666900,0.00454739,3806.0,3805.7,1.92998895]
[1641195667101,0.00454739,3806.0,3805.8,0.65681]
[1641195667299,0.00397897,3805.9,3805.8,0.95681]
[1641195667498,0.00397897,3805.9,3805.8,1.25681]
[1641195668102,0.00397897,3805.9,3805.8,2.25681]
[1641195670437,0.00397897,3805.9,3805.8,4.67642039]
[1641195670642,0.00397897,3805.9,3805.8,7.71242039]
[1641195670837,0.00397897,3805.9,3805.8,5.67381]
[1641195678067,0.00397897,3805.9,3805.8,7.89146741]
[1641195678272,0.00397897,3805.9,3805.8,23.27146741]
[1641195678472,0.00397897,3805.9,3805.8,7.89146741]
[1641195678673,0.00397897,3805.9,3805.8,5.67381]
[1641195679077,0.00397897,3805.9,3805.8,23.2957492]
[1641195679674,0.00397897,3805.9,3805.8,7.9157492]
[1641195680887,0.00397897,3805.9,3805.8,5.67381]
[1641195681888,0.00397897,3805.9,3805.8,5.29281]
[1641195685735,0.00397897,3805.9,3805.8,7.06084549]
[1641195686334,0.00397897,3805.9,3805.8,5.29281]
[1641195697686,0.05683817,3806.7,3805.8,5.29281]
[1641195697886,0.05683817,3806.7,3806.2,0.65679]
[1641195698086,0.00795793,3806.6,3806.2,0.95679]
[1641195698288,0.00795793,3806.6,3806.2,0.3]
[1641195698489,0.00738951,3806.5,3805.9,2.61357]
[1641195698887,0.66363108,3806.4,3806.3,0.65679]
[1641195699141,0.66363108,3806.4,3805.9,1.31357]
[1641195699142,0.00682108,3806.4,3805.9,1.31357]
[1641195699544,0.00625266,3806.3,3805.9,1.31357]
[1641195699940,0.66254424,3806.2,3805.9,1.31357]
[1641195700145,0.65629158,3806.2,3805.9,1.31357]
[1641195700342,0.00511581,3806.1,3805.9,1.31357]
[1641195700742,0.00454739,3806.0,3805.9,1.31357]
[1641195701949,0.00454739,3806.0,3805.5,2.31193608]
[1641195702145,0.657,3805.8,3805.5,2.31193608]
[1641195702444,0.00284212,3805.7,3805.5,2.31193608]
[1641195702879,0.00227369,3805.6,3805.5,0.99358]
[1641195708633,0.00227369,3805.6,3805.5,1.29358]
[1641195708835,0.00227369,3805.6,3805.5,1.59358]
[1641195709033,0.00227369,3805.6,3805.5,2.59358]
[1641195710037,0.00227369,3805.6,3805.5,4.35191907]
[1641195710319,0.00227369,3805.6,3805.5,3.05191907]
[1641195710520,0.00227369,3805.6,3805.5,4.35191907]
[1641195712121,0.00227369,3805.6,3805.5,2.59358]
[1641195712920,0.00227369,3805.6,3805.5,0.99358]
[1641195713125,0.00227369,3805.6,3805.5,1.29358]
[1641195713521,0.00227369,3805.6,3805.5,0.99358]
[1641195715148,0.00227369,3805.6,3805.5,1.65049]
[1641195716649,0.00227369,3805.6,3805.5,5.02113765]
[1641195717250,0.20407865,3806.0,3805.5,4.57321988]
[1641195717450,0.20407865,3806.0,3805.7,0.65684]
[1641195717647,0.00170528,3805.9,3805.7,0.65684]
[1641195718089,0.00113685,3805.8,3805.7,0.65684]
[1641195725284,0.00113685,3805.8,3805.6,2.32272988]
[1641195725880,0.65804685,3805.8,3805.6,2.32272988]
[1641195727182,0.65804685,3805.8,3805.6,1.0]
[1641195727580,0.65804685,3805.8,3805.5,3.25048]
[1641195727982,0.65804685,3805.8,3805.5,2.59358]
[1641195728587,0.65804685,3805.8,3805.5,0.99358]
[1641195731033,0.60871302,3805.8,3805.5,0.99358]
[1641195732438,1.94929903,3805.7,3805.6,1.32272988]
[1641195736295,1.95018496,3805.7,3805.6,1.32272988]
[1641195736542,1.95284275,3805.7,3805.6,1.32272988]
[1641195739548,1.95284275,3805.7,3805.5,2.31630988]
[1641195739748,2.60977275,3805.7,3805.5,2.31630988]
[1641195740389,1.94929903,3805.6,3805.5,2.31630988]
[1641195742995,1.94929903,3805.6,3805.5,0.99358]
[1641195743194,1.94929903,3805.6,3805.5,2.29358]
[1641195744039,1.94929903,3805.6,3805.5,1.29358]
[1641195744244,1.94929903,3805.6,3805.5,2.29358]
[1641195745246,1.94929903,3805.6,3805.5,4.44994645]
[1641195746847,0.00354372,3805.7,3805.5,4.44994645]
[1641195747052,0.00087442,3805.6,3805.5,6.22030474]
[1641195749599,0.00087442,3805.6,3805.5,4.44965709]
[1641195754942,0.00087442,3805.6,3805.5,6.51318327]
[1641195756587,0.00087442,3805.6,3805.5,4.74965709]
[1641195757599,0.65677,3806.4,3806.1,1.42209783]
[1641195757989,1.945076,3806.3,3806.1,1.42209783]
[1641195758391,0.00341055,3806.2,3806.1,1.42209783]
[1641195758793,0.00341055,3806.2,3806.1,1.72209783]
[1641195759042,0.00341055,3806.2,3806.1,2.67887783]
[1641195759439,1.94450758,3806.2,3806.1,3.67887783]
[1641195759840,1.94450758,3806.2,3806.1,3.37887783]
[1641195761742,1.94450758,3806.2,3806.1,2.07887783]
[1641195761940,1.94450758,3806.2,3806.1,0.65678]
[1641195762143,1.94450758,3806.2,3806.1,2.28028869]
[1641195762341,1.94450758,3806.2,3806.1,1.98028869]
[1641195762543,1.94450758,3806.2,3806.1,1.7011212]
[1641195762983,1.94450758,3806.2,3806.1,2.3011212]
[1641195763185,1.94450758,3806.2,3806.1,3.3011212]
[1641195766532,1.94309134,3806.2,3806.1,3.3011212]
[1641195767532,0.00199431,3806.2,3806.1,1.97761251]
[1641195767735,0.00199431,3806.2,3806.1,4.15474729]
[1641195767938,0.00199431,3806.2,3806.1,3.15474729]
[1641195768134,1.94395166,3806.2,3806.1,4.15474729]
[1641195769243,0.00285463,3806.2,3806.1,4.15474729]
[1641195769642,1.94395166,3806.2,3806.1,4.15474729]
[1641195769839,1.94395166,3806.2,3806.1,3.85474729]
[1641195770043,0.00285463,3806.2,3806.1,5.61942554]
[1641195770688,0.00285463,3806.2,3806.1,5.56430844]
[1641195770890,0.00285463,3806.2,3806.1,5.26430844]
[1641195771092,0.00285463,3806.2,3806.1,2.14229076]
[1641195771689,0.00285463,3806.2,3806.1,4.2851246]
[1641195771890,0.00285463,3806.2,3806.1,3.14229076]
[1641195772490,1.85217216,3806.2,3806.1,1.37761251]
[1641195772892,1.85217216,3806.2,3806.1,3.5215139]
[1641195773693,1.80217216,3806.2,3806.1,3.5215139]
[1641195774149,1.80217216,3806.2,3806.1,1.37761251]
[1641195774450,1.80217216,3806.2,3806.1,0.37761251]
[1641195774650,1.80217216,3806.2,3806.1,3.52122796]
[1641195774955,1.80217216,3806.2,3806.1,3.52191144]
[1641195775149,1.80217216,3806.2,3806.1,1.37761251]
[1641195775349,0.00086032,3806.3,3806.1,3.53218007]
[1641195775549,0.00086032,3806.3,3806.1,1.37761251]
[1641195775753,0.00086032,3806.3,3806.1,3.52729209]
[1641195775951,0.00086032,3806.3,3806.1,4.85148498]
[1641195776152,0.00086032,3806.3,3806.1,4.8834493]
[1641195776351,0.00086032,3806.3,3806.1,4.83045623]
[1641195776552,0.00086032,3806.3,3806.1,2.7018054]
[1641195778788,0.65676,3806.5,3806.1,2.7018054]
[1641195778989,0.65676,3806.5,3806.1,1.7018054]
[1641195779191,2.86635047,3806.4,3806.1,1.32419289]
[1641195779990,0.65797684,3806.4,3806.1,1.32419289]
[1641195780190,0.65797684,3806.4,3806.0,1.32419289]
[1641195780191,0.65693,3806.3,3806.0,1.32419289]
[1641195780390,1.31386,3806.3,3806.0,1.32419289]
[1641195780591,3.49812022,3806.3,3806.0,1.32419289]
[1641195780897,1.31386,3806.3,3805.8,0.05683739]
[1641195781095,2.84480747,3806.3,3805.8,0.05683739]
[1641195781292,2.84480747,3806.3,3805.9,0.00170527]
[1641195781942,2.84145222,3806.3,3805.9,0.00170527]
[1641195782143,0.65691,3806.2,3805.9,0.00170527]
[1641195782346,1.3138,3806.2,3805.9,0.00170527]
[1641195783548,3.52633328,3806.2,3805.9,0.00170527]
[1641195783743,1.3138,3806.2,3805.9,0.00170527]
[1641195784547,0.65689,3806.2,3805.9,0.00170527]
[1641195786187,1.3138,3806.2,3805.9,0.00170527]
[1641195786985,0.65689,3806.2,3805.9,0.00170527]
[1641195789743,3.48513051,3806.2,3805.9,0.00170527]
[1641195790041,1.3138,3806.2,3805.9,0.00170527]
[1641195792041,0.60689,3806.2,3805.9,0.00170527]
[1641195794003,1.84268672,3806.1,3805.9,0.00170527]
[1641195795908,2.49969672,3806.1,3805.9,0.00170527]
[1641195796949,1.84268672,3806.0,3805.9,0.00170527]
[1641195804053,3.05029827,3806.2,3805.9,0.00170527]
[1641195804054,1.84268672,3806.1,3805.9,0.00170527]
[1641195804660,1.84268672,3806.0,3805.9,0.00170527]
[1641195805260,1.84268672,3806.1,3805.9,0.00170527]
[1641195811205,1.84268672,3806.1,3805.8,0.05683739]
[1641195811408,0.65694,3806.0,3805.8,0.05683739]
[1641195811641,1.31387,3806.0,3805.8,0.05683739]
[1641195812641,1.84268672,3805.9,3805.8,0.05683739]
[1641195813044,1.84268672,3805.9,3805.8,0.05911109]
[1641195813241,1.31387,3806.0,3805.8,0.0022737]
[1641195813641,0.65695,3805.9,3805.7,0.00284212]
[1641195814549,0.65695,3805.9,3805.6,0.66032055]
[1641195814945,0.65695,3805.9,3805.7,0.00284212]
[1641195815702,0.65695,3805.9,3805.6,0.00341055]
[1641195817505,0.65695,3805.9,3805.6,0.66031055]
[1641195817908,0.65695,3805.9,3805.7,0.00284212]
[1641195818709,0.65695,3805.9,3805.7,0.65973212]
[1641195818912,0.65695,3805.9,3805.7,0.65689]
[1641195819455,0.65695,3805.9,3805.6,0.00341055]
[1641195819659,0.65695,3805.9,3805.6,0.30341055]
[1641195820056,0.65695,3805.9,3805.7,0.00284212]
[1641195820457,1.3139747,3805.9,3805.7,0.00284212]
[1641195820658,1.3139747,3805.9,3805.6,0.00341055]
[1641195820855,1.9710047,3805.9,3805.6,0.00341055]
[1641195821056,1.3139747,3805.9,3805.6,0.00341055]
[1641195821855,1.9710147,3805.9,3805.6,0.00341055]
[1641195822260,0.65702,3805.8,3805.6,0.00341055]
[1641195822893,2.55085096,3805.8,3805.6,0.00341055]
[1641195823693,1.89383096,3805.7,3805.6,0.00341055]
[1641195825099,1.85882848,3805.7,3805.6,0.00341055]
[1641195829660,1.85882848,3805.7,3805.6,2.13132191]
[1641195830061,1.85882848,3805.7,3805.6,3.13132191]
[1641195830297,1.85882848,3805.7,3805.6,1.00341055]
[1641195830494,1.85882848,3805.7,3805.6,1.66032055]
[1641195833506,1.85882848,3805.7,3805.6,1.00341055]
[1641195835057,0.65702,3805.8,3805.6,2.32950645]
[1641195835456,0.65702,3805.8,3805.7,0.00284212]
[1641195837360,0.65702,3805.8,3805.7,1.32893802]
[1641195842454,0.65702,3805.8,3805.7,0.00284212]
[1641195845902,2.54209924,3805.8,3805.7,0.00284212]
[1641195847105,2.54209924,3805.8,3805.6,0.00341055]
[1641195848111,1.88507924,3805.7,3805.6,0.00341055]
[1641195856006,4.06434555,3805.7,3805.6,0.00341055]
[1641195856213,1.88507924,3805.7,3805.6,0.00341055]
[1641195856547,4.04429519,3805.7,3805.6,0.00341055]
[1641195857555,4.34429519,3805.7,3805.6,0.00341055]
[1641195857954,4.04429519,3805.7,3805.6,0.00341055]
[1641195859054,4.34429519,3805.7,3805.6,0.00341055]
[1641195860708,1.88507924,3805.7,3805.6,0.00341055]
[1641195863713,4.70789758,3805.7,3805.6,0.00341055]
[1641195864559,2.54210504,3805.7,3805.6,0.00341055]
[1641195871011,4.44947888,3805.7,3805.6,0.00341055]
[1641195871315,2.54210504,3805.7,3805.6,0.00341055]
[1641195872558,4.46758965,3805.7,3805.6,0.00341055]
[1641195872960,2.54210504,3805.7,3805.6,0.00341055]
[1641195877018,2.54210504,3805.7,3805.5,1.05041791]
[1641195877418,3.85620504,3805.7,3805.5,1.05041791]
[1641195877619,3.85620504,3805.7,3805.5,1.57601791]
[1641195878218,4.51328504,3805.7,3805.5,1.57601791]
[1641195878417,2.91500917,3805.6,3805.5,1.57601791]
[1641195878819,2.91500917,3805.6,3805.5,1.57999688]
[1641195879275,2.91500917,3805.6,3805.5,1.52315897]
[1641195881476,2.90873737,3805.6,3805.5,1.52315897]
[1641195883123,1.87880744,3805.6,3805.5,1.52315897]
[1641195888882,1.84965816,3805.6,3805.5,1.52315897]
[1641195902054,3.4345358,3805.6,3805.5,0.99755897]
[1641195902257,3.4345358,3805.6,3805.2,0.05683843]
[1641195902258,2.17633,3805.5,3805.2,0.05683843]
[1641195902456,2.66042077,3805.3,3805.2,0.05683843]
[1641195902656,2.66042077,3805.3,3804.7,1.76467825]
[1641195902855,1.0,3805.2,3804.7,1.76467825]
[1641195903060,2.34454782,3805.1,3804.8,0.00397896]
[1641195903256,1.33598762,3804.9,3804.7,1.76467825]
[1641195903565,1.33598762,3804.9,3804.6,7.02087825]
[1641195903566,0.65727,3804.8,3804.6,7.02087825]
[1641195903763,2.80394495,3804.8,3804.6,7.02087825]
[1641195904369,0.65727,3804.8,3804.6,7.02087825]
[1641195904563,1.31451,3804.8,3804.6,7.02087825]
[1641195904966,1.97178,3804.8,3804.6,5.2562]
[1641195906016,2.15119709,3804.7,3804.6,5.2562]
[1641195906212,1.97178,3804.8,3804.6,5.2562]
[1641195906412,1.97178,3804.8,3804.6,5.25733685]
[1641195906815,0.65727,3804.8,3804.6,5.25733685]
[1641195909372,1.8936315,3804.7,3804.6,5.25733685]
[1641195913806,0.65727,3804.8,3804.6,5.25733685]
[1641195914411,0.65727,3804.8,3804.7,0.01973556]
[1641195914612,0.65727,3804.8,3804.7,0.03947112]
[1641195915414,2.60439972,3804.8,3804.7,0.03947112]
[1641195916860,2.90439972,3804.8,3804.7,0.03947112]
[1641195917863,2.60439972,3804.8,3804.7,0.03947112]
[1641195921815,2.90439972,3804.8,3804.7,0.03947112]
[1641195922618,2.60439972,3804.8,3804.7,0.03947112]
[1641195924081,0.65727,3804.8,3804.7,0.03947112]
[1641195927589,2.6030335,3804.8,3804.7,0.03947112]
[1641195936814,2.9030335,3804.8,3804.7,0.03947112]
[1641195937814,2.6030335,3804.8,3804.7,0.03947112]
[1641195950521,1.9457635,3804.8,3804.7,0.03947112]
[1641195951117,3.2599235,3804.9,3804.7,1.36690351]
[1641195951515,3.2599235,3804.9,3804.7,1.34716795]
[1641195951714,3.2599235,3804.9,3804.8,0.01973556]
[1641195951918,3.2599235,3804.9,3804.8,0.03947112]
[1641195951919,2.6028435,3804.9,3804.8,0.03947112]
[1641195952520,0.65708,3804.9,3804.8,0.03947112]
[1641195959420,3.38815348,3804.9,3804.8,0.03947112]
[1641195959616,4.38815348,3804.9,3804.8,0.03947112]
[1641195959818,4.86595348,3804.9,3804.8,0.03947112]
[1641195960023,0.65737,3804.5,3804.0,0.057284]
[1641195960220,0.65738,3804.3,3804.0,0.057284]
[1641195960418,1.3147504,3804.2,3804.0,0.057284]
[1641195960819,5.2575,3804.1,3804.0,0.057284]
[1641195961217,5.2575,3804.1,3803.4,1.21908135]
[1641195961420,0.65738,3803.5,3803.2,0.0586]
[1641195961673,2.62949,3803.9,3803.0,1.0]
[1641195961674,4.85188118,3803.9,3803.0,1.0]
[1641195961874,4.85188118,3803.9,3803.7,0.0572851]
[1641195963074,2.17227571,3803.8,3803.7,0.0572851]
[1641195963273,2.17227571,3803.8,3803.1,1.64556753]
[1641195963474,1.31474,3803.7,3802.9,1.3]
[1641195963675,0.65737,3803.4,3802.9,1.3]
[1641195963875,0.65737,3803.4,3803.0,0.00625266]
[1641195964075,0.65738,3803.3,3803.0,0.00625266]
[1641195965078,0.65738,3803.2,3803.0,0.00625266]
[1641195966321,0.65738,3803.2,3802.9,0.00682108]
[1641195966523,0.65739,3803.1,3802.9,0.00682108]
[1641195967728,0.65739,3803.1,3802.6,6.63057543]
[1641195967729,0.65739,3803.1,3802.7,0.00795793]
[1641195967935,0.65749,3803.0,3802.7,0.00795793]
[1641195968132,3.74291936,3803.0,3802.7,0.00795793]
[1641195968831,1.31495,3803.0,3802.4,1.0096632]
[1641195969083,2.62996,3802.9,3802.4,1.0096632]
[1641195969278,2.62996,3802.9,3802.5,0.00909477]
[1641195969981,0.6575,3802.6,3802.5,0.00909477]
[1641195970182,0.6575,3802.6,3802.4,0.0096632]
[1641195970583,3.08554426,3802.6,3802.4,0.0096632]
[1641195970779,3.08554426,3802.6,3802.2,0.01080004]
[1641195970980,4.40074426,3802.6,3802.2,0.01080004]
[1641195971180,1.31521,3802.5,3802.2,0.01080004]
[1641195971379,1.31521,3802.5,3802.1,0.3]
[1641195971584,1.01630486,3801.7,3801.3,2.17869918]
[1641195971782,2.80255326,3801.6,3801.3,2.17869918]
[1641195971980,0.681,3801.6,3801.4,0.00341054]
[1641195972180,6.91526,3801.5,3801.4,0.00341054]
[1641195972383,7.29626,3801.5,3801.4,0.00341054]
[1641195972587,7.29626,3801.5,3801.2,0.00454739]
[1641195972829,6.29626,3801.5,3801.2,0.00454739]
[1641195973025,5.91526,3801.5,3801.2,0.00454739]
[1641195973226,5.91526,3801.5,3800.8,0.00682108]
[1641195973423,0.65771,3801.3,3800.8,0.00682108]
[1641195974026,0.65771,3801.3,3800.6,0.00795793]
[1641195974629,2.42804426,3801.2,3800.6,0.00795793]
[1641195974833,0.65774,3801.1,3800.6,0.00795793]
[1641195975630,0.65775,3801.0,3800.3,0.0096632]
[1641195976032,0.65777,3800.8,3800.2,0.01023162]
[1641195976668,0.65775,3801.0,3800.2,0.01023162]
[1641195976873,0.65775,3801.0,3800.2,0.31023162]
[1641195977072,0.65775,3801.0,3800.2,0.3]
[1641195977273,0.65775,3801.0,3800.3,0.0096632]
[1641195977675,0.58475,3801.0,3800.1,0.01080005]
[1641195978074,0.58475,3801.0,3800.1,0.31080005]
[1641195978480,0.58475,3801.0,3800.2,0.01023162]
[1641195978775,0.58475,3801.0,3800.2,0.3]
[1641195978974,0.58475,3801.0,3800.1,0.01080005]
[1641195979176,0.58475,3801.0,3800.3,3.58792615]
[1641195979378,0.58475,3801.0,3800.3,3.57826295]
[1641195979578,0.58475,3801.0,3800.4,0.00909478]
[1641195981017,0.65784,3800.8,3800.4,0.00909478]
[1641195981213,0.65783,3800.7,3800.4,0.00909478]
[1641195981415,0.65783,3800.7,3800.4,0.3]
[1641195981615,0.65783,3800.7,3800.1,0.01080005]
[1641195981816,0.65783,3800.7,3800.5,0.00852635]
[1641195982017,0.65783,3800.7,3800.1,0.01080005]
[1641195983522,0.65783,3800.7,3800.0,0.41080005]
[1641195983922,0.00284212,3800.6,3800.0,0.41080005]
[1641195984481,0.0022737,3800.5,3800.0,0.41080005]
[1641195984879,0.00170527,3800.4,3800.0,0.41080005]
[1641195985281,0.65783,3800.7,3800.0,0.41080005]
[1641195985282,0.00113685,3800.3,3800.0,0.41080005]
[1641195985682,0.00284212,3800.6,3800.0,0.41080005]
[1641195986090,0.65783,3800.7,3800.0,0.41080005]
[1641195986091,0.0022737,3800.5,3800.0,0.41167274]
[1641195986486,0.00170527,3800.4,3800.0,0.41167274]
[1641195986887,0.00113685,3800.3,3800.0,0.41167274]
[1641195987286,2.98519229,3800.6,3800.0,0.41167274]
[1641195987684,0.0022737,3800.5,3800.0,0.41167274]
[1641195988117,0.00170527,3800.4,3800.0,0.41167274]
[1641195988514,2.98235017,3800.6,3800.0,0.41167274]
[1641195988515,0.00113685,3800.3,3800.0,0.41167274]
[1641195988916,0.0022737,3800.5,3800.0,0.41167274]
[1641195989321,0.00170527,3800.4,3800.0,0.41167274]
[1641195989721,0.00113685,3800.3,3800.0,0.41167274]
[1641195990121,0.0022737,3800.5,3800.0,0.41167274]
[1641195990524,0.00170527,3800.4,3800.0,0.41167274]
[1641195990924,0.00113685,3800.3,3800.0,0.41167274]
[1641195991326,0.0022737,3800.5,3800.0,0.41167274]
[1641195991765,0.00170527,3800.4,3800.0,0.41167274]
[1641195992166,2.98235017,3800.6,3800.0,0.41167274]
[1641195992167,2.95734859,3800.6,3800.0,0.41167274]
[1641195992566,0.00113685,3800.5,3800.1,0.00113685]
[1641195993971,0.00113685,3800.5,3800.2,26.3331109]
[1641195994170,0.00113685,3800.5,3800.3,1.0]
[1641195994568,0.00113685,3800.5,3800.3,1.3]
[1641195995418,0.00113685,3800.5,3800.2,26.6331109]
[1641195995614,0.00113685,3800.5,3800.3,1.0]
[1641195996017,0.00113685,3800.5,3800.3,1.86762099]
[1641195998520,0.00113685,3800.5,3800.3,0.86762099]
[1641195998719,0.00113685,3800.5,3800.3,1.3]
[1641195999183,0.00113685,3800.5,3800.3,0.3]
[1641195999480,0.00113685,3800.5,3800.2,0.3]
[1641195999679,0.00113685,3800.5,3800.1,1.00113685]
[1641195999979,0.00113685,3800.5,3800.1,0.00113685]
[1641196000181,0.00113685,3800.5,3800.1,1.00113685]
[1641196000681,0.00113685,3800.5,3800.1,0.00113685]
[1641196000881,0.00113685,3800.5,3800.1,1.00113685]
[1641196001080,0.00113685,3800.5,3800.1,0.00113685]
[1641196001280,0.00113685,3800.5,3800.1,1.00113685]
[1641196001882,0.00113685,3800.5,3800.1,0.00113685]
[1641196002083,0.00113685,3800.5,3800.1,1.00113685]
[1641196002285,0.00113685,3800.5,3800.1,0.00113685]
[1641196002484,0.00113685,3800.5,3800.1,0.95113685]
[1641196002687,0.00170527,3800.4,3800.1,0.95113685]
[1641196003125,0.00113685,3800.3,3800.1,0.95113685]
[1641196003526,0.00341055,3800.7,3800.0,1.76541]
[1641196003930,0.00284212,3800.6,3800.0,1.76541]
[1641196004127,0.66068212,3800.6,3800.0,0.45]
[1641196004333,0.0022737,3800.5,3800.0,0.45]
[1641196004526,0.0022737,3800.5,3800.0,0.15]
[1641196004726,2.24014135,3800.8,3800.0,0.15]
[1641196004727,2.21661736,3800.8,3800.0,0.15]
[1641196004925,2.19939881,3800.8,3800.0,0.15]
[1641196005127,0.00170528,3800.7,3800.1,0.00170527]
[1641196005327,0.65787,3800.6,3800.1,0.00170527]
[1641196005528,0.65900685,3800.6,3800.1,0.00170527]
[1641196006326,1.31573,3800.4,3800.1,0.30170527]
[1641196006583,1.31573,3800.4,3800.1,0.00170527]
[1641196006770,0.65786,3800.4,3800.2,0.00113684]
[1641196008071,0.00113685,3800.6,3800.2,0.00113684]
[1641196008872,0.00113685,3800.6,3800.2,0.65890684]
[1641196009071,0.00113685,3800.6,3800.2,0.95890684]
[1641196009278,0.00113685,3800.6,3800.2,1.61665504]
[1641196009480,0.00113685,3800.6,3800.3,0.3]
[1641196009677,0.00113685,3800.6,3800.2,0.95890684]
[1641196009879,0.65893685,3800.6,3800.2,0.95890684]
[1641196010731,0.65893685,3800.6,3800.2,0.30113684]
[1641196011134,0.65893685,3800.6,3800.2,0.00113684]
[1641196011333,0.65893685,3800.6,3800.2,0.30113684]
[1641196011531,0.65893685,3800.6,3800.2,0.00113684]
[1641196012137,1.31674685,3800.6,3800.2,0.00113684]
[1641196012335,1.31674685,3800.6,3800.2,2.60113684]
[1641196012735,1.31674685,3800.6,3800.2,2.90113684]
[1641196015376,0.65893685,3800.6,3800.2,3.85892684]
[1641196015580,0.00113685,3800.6,3800.3,1.0]
[1641196015776,0.00113685,3800.6,3800.3,1.3]
[1641196016678,0.00113685,3800.6,3800.4,0.65774]